fUST/lending_fUST_20240616
["ID","MTS","AMOUNT","RATE_DAILY","PERIOD"]
[329652024,1718543453464,-500.0,0.00015723,2]
[329652026,1718543453476,-500.0,0.00015723,2]
[329652027,1718543453491,-1566.70020501,0.00015724,2]
[329655267,1718543626284,3000.0,0.00023,30]
[329655272,1718543768914,371.24,0.00010959,2]
[329655282,1718544232646,3000.0,0.00023,30]
[329656259,1718544653161,-744.07951163,0.00015622,2]
[329656261,1718544653175,-500.0,0.00015721,2]
[329656264,1718544653208,-3726.8,0.00015721,2]
[329656266,1718544653220,-500.0,0.00015721,2]
[329656268,1718544653237,-500.0,0.00015721,2]
[329656269,1718544653260,-500.0,0.00015721,2]
[329656271,1718544653273,-500.0,0.00015721,2]
[329656273,1718544653297,-879.79,0.00015721,2]
[329656275,1718544653323,-500.0,0.00015721,2]
[329656277,1718544653359,-500.0,0.00015721,2]
[329656279,1718544653390,-500.0,0.00015721,2]
[329656281,1718544653424,-500.0,0.00015721,2]
[329656283,1718544653455,-500.0,0.00015721,2]
[329656284,1718544653477,-500.0,0.00015722,2]
[329656286,1718544653498,-500.0,0.00015722,2]
[329656288,1718544653511,-525.48268135,0.00015722,2]
[329656290,1718544653536,-500.0,0.00015722,2]
[329656291,1718544653547,-500.0,0.00015722,2]
[329656293,1718544653560,-500.0,0.00015722,2]
[329656295,1718544653572,-500.0,0.00015722,2]
[329656297,1718544653584,-500.0,0.00015722,2]
[329656299,1718544653599,-501.50273362,0.00015722,2]
[329656300,1718544653611,-500.0,0.00015722,2]
[329656302,1718544653647,-500.0,0.00015722,2]
[329656304,1718544653658,-510.06712707,0.00015722,2]
[329656306,1718544653675,-500.0,0.00015722,2]
[329656308,1718544653690,-500.0,0.00015722,2]
[329656310,1718544653709,-500.0,0.00015722,2]
[329656313,1718544653726,-500.0,0.00015722,2]
[329656314,1718544653738,-500.0,0.00015722,2]
[329656316,1718544653773,-574.76,0.00015722,2]
[329656318,1718544653799,-511.31226543,0.00015722,2]
[329656320,1718544653813,-500.0,0.00015722,2]
[329656322,1718544653825,-500.0,0.00015722,2]
[329656324,1718544653839,-502.7086725,0.00015722,2]
[329656326,1718544653852,-382.58990261,0.00015722,2]
[329656327,1718544653908,-500.0,0.00015722,2]
[329656329,1718544653921,-512.22853905,0.00015722,2]
[329656330,1718544653957,-612.94268373,0.00015722,2]
[329656332,1718544653969,-503.74270502,0.00015722,2]
[329656334,1718544653986,-500.0,0.00015722,2]
[329656336,1718544654020,-500.0,0.00015722,2]
[329656339,1718544654057,-500.0,0.00015722,2]
[329656340,1718544654092,-500.0,0.00015722,2]
[329656342,1718544654107,-500.0,0.00015722,2]
[329656344,1718544654120,-500.0,0.00015722,2]
[329656345,1718544654136,-500.0,0.00015722,2]
[329656347,1718544654147,-500.0,0.00015722,2]
[329656349,1718544654172,-500.0,0.00015722,2]
[329656351,1718544654208,-500.0,0.00015722,2]
[329656354,1718544654243,-729.5,0.00015722,2]
[329656356,1718544654257,-500.0,0.00015722,2]
[329656358,1718544654288,-504.11322317,0.00015722,2]
[329656360,1718544654311,-500.0,0.00015722,2]
[329656361,1718544654325,-500.0,0.00015722,2]
[329656363,1718544654337,-500.0,0.00015722,2]
[329656365,1718544654349,-500.0,0.00015722,2]
[329656367,1718544654376,-500.0,0.00015722,2]
[329656368,1718544654395,-500.0,0.00015722,2]
[329656369,1718544654429,-500.0,0.00015722,2]
[329656372,1718544654456,-500.0,0.00015722,2]
[329656374,1718544654471,-500.0,0.00015722,2]
[329656376,1718544654487,-500.0,0.00015722,2]
[329656378,1718544654506,-500.0,0.00015722,2]
[329656381,1718544654530,-500.0,0.00015722,2]
[329656386,1718544654593,-500.0,0.00015722,2]
[329656390,1718544654646,-500.0,0.00015722,2]
[329656393,1718544654662,-500.0,0.00015722,2]
[329656396,1718544654677,-500.0,0.00015722,2]
[329656399,1718544654689,-500.0,0.00015722,2]
[329656403,1718544654716,-500.0,0.00015722,2]
[329656407,1718544654751,-553.78,0.00015722,2]
[329656410,1718544654781,-502.12414477,0.00015722,2]
[329656412,1718544654812,-1082.87,0.00015722,2]
[329656414,1718544654827,-500.0,0.00015722,2]
[329656416,1718544654844,-274.47223674,0.00015722,2]
[329656418,1718544654857,-500.0,0.00015722,2]
[329656420,1718544654874,-312.17343746,0.00015722,2]
[329656425,1718544654949,-187.82656254,0.00015722,2]
[329656427,1718544654964,-500.0,0.00015722,2]
[329656429,1718544654983,-312.35181121,0.00015722,2]
[329656430,1718544655006,-187.64818879,0.00015722,2]
[329656432,1718544655036,-2074.47,0.00015722,2]
[329656434,1718544655058,-1916.32,0.00015722,2]
[329656435,1718544655081,-537.15846098,0.00015722,2]
[329656441,1718544655232,-968.3789886,0.00015722,2]
[329656445,1718544655308,-410.78255042,0.00015722,2]
[329656447,1718544655323,-1916.32,0.00015722,2]
[329656449,1718544655340,-1424.65,0.00015722,2]
[329656451,1718544655357,-821.97,0.00015722,2]
[329656453,1718544655381,-500.0,0.00015722,2]
[329656455,1718544655403,-503.90877021,0.00015722,2]
[329656457,1718544655416,-500.0,0.00015722,2]
[329656458,1718544655444,-500.0,0.00015722,2]
[329656461,1718544655462,-500.0,0.00015722,2]
[329656462,1718544655494,-500.0,0.00015722,2]
[329656464,1718544655507,-500.0,0.00015722,2]
[329656465,1718544655518,-500.0,0.00015722,2]
[329656467,1718544655532,-500.0,0.00015722,2]
[329656469,1718544655545,-516.66794117,0.00015722,2]
[329656471,1718544655562,-500.0,0.00015722,2]
[329656473,1718544655574,-500.0,0.00015722,2]
[329656475,1718544655587,-500.0,0.00015722,2]
[329656477,1718544655601,-1546.2897456,0.00015722,2]
[329656480,1718544655676,-329.6402544,0.00015722,2]
[329656482,1718544655692,-500.0,0.00015722,2]
[329656483,1718544655706,-500.0,0.00015722,2]
[329656485,1718544655725,-321.43055418,0.00015722,2]
[329656487,1718544655740,-500.0,0.00015722,2]
[329656489,1718544655755,-500.0,0.00015722,2]
[329656492,1718544655779,-238.45174484,0.00015722,2]
[329656946,1718544744675,6040.08084558,9.999e-05,2]
[329656949,1718544827287,3000.0,0.00023,30]
[329656956,1718544929142,900000.0,0.00025,60]
[329656958,1718544965358,140000.0,0.000247,120]
[329657034,1718545175400,10752.0,0.0002425,120]
[329657148,1718545835093,-532.14467335,0.00015,2]
[329657150,1718545835108,-155.00155002,0.00015,2]
[329657151,1718545835120,-500.0,0.000155,2]
[329657152,1718545835132,-101.75382382,0.00015618,2]
[329657153,1718545835146,-398.24617618,0.00015618,2]
[329657154,1718545835162,-218.68597788,0.00015618,2]
[329657201,1718545841376,-277.5685,0.00015618,2]
[329657202,1718545841390,-3.74552212,0.00015618,2]
[329657203,1718545841410,-357.44940488,0.00015618,2]
[329657204,1718545841432,-406.48654156,0.00015618,2]
[329657205,1718545841446,-500.0,0.00015619,2]
[329657206,1718545841465,-371.78985277,0.00015619,2]
[329657207,1718545841637,-192.8560646,0.00015619,2]
[329657208,1718545841657,-346.83879439,0.00015619,2]
[329657209,1718545841670,-500.0,0.00015619,2]
[329657210,1718545841682,-129.92956949,0.00015619,2]
[329657623,1718545850587,-500.0,0.00015618,2]
[329657625,1718545850612,-370.07043051,0.00015619,2]
[329657627,1718545850633,-500.0,0.00015619,2]
[329657629,1718545850650,-500.0,0.00015619,2]
[329657631,1718545850662,-508.67739294,0.00015619,2]
[329657633,1718545850676,-500.0,0.00015619,2]
[329657637,1718545850785,-539.74396813,0.00015619,2]
[329657641,1718545850836,-500.0,0.00015619,2]
[329657642,1718545850862,-500.0,0.00015619,2]
[329657645,1718545850875,-519.98265745,0.00015619,2]
[329657646,1718545850915,-500.0,0.00015619,2]
[329657649,1718545850941,-500.0,0.00015619,2]
[329657650,1718545850977,-500.0,0.00015619,2]
[329657652,1718545850999,-500.0,0.00015619,2]
[329657654,1718545851015,-500.0,0.00015619,2]
[329657656,1718545851031,-500.0,0.00015619,2]
[329657659,1718545851074,-503.51770286,0.00015619,2]
[329657661,1718545851085,-227.65330385,0.00015619,2]
[329657662,1718545851102,-500.0,0.00015619,2]
[329657664,1718545851117,-6050.42,0.00015619,2]
[329657666,1718545851133,-504.00034136,0.00015619,2]
[329657668,1718545851148,-500.0,0.00015619,2]
[329657670,1718545851163,-500.0,0.00015619,2]
[329657672,1718545851178,-500.0,0.00015619,2]
[329657674,1718545851190,-500.0,0.00015619,2]
[329657676,1718545851204,-1023.36,0.00015619,2]
[329657680,1718545851240,-501.9920239,0.00015619,2]
[329657681,1718545851251,-500.0,0.00015619,2]
[329657683,1718545851264,-509.90045885,0.00015619,2]
[329657685,1718545851279,-1354.31,0.00015619,2]
[329657687,1718545851294,-500.0,0.00015619,2]
[329657690,1718545851314,-506.13990844,0.00015619,2]
[329657692,1718545851340,-500.0,0.00015619,2]
[329657694,1718545851357,-3428.91,0.00015619,2]
[329657696,1718545851378,-500.0,0.00015619,2]
[329657698,1718545851390,-500.0,0.00015619,2]
[329657700,1718545851403,-500.0,0.00015619,2]
[329657702,1718545851416,-500.0,0.00015619,2]
[329657704,1718545851430,-500.0,0.00015619,2]
[329657706,1718545851444,-500.0,0.00015619,2]
[329657707,1718545851460,-500.0,0.00015619,2]
[329657709,1718545851480,-504.73425031,0.00015619,2]
[329657711,1718545851491,-500.0,0.00015619,2]
[329657713,1718545851502,-506.17453955,0.00015619,2]
[329657715,1718545851522,-551.33490613,0.00015619,2]
[329657717,1718545851541,-3601.15,0.00015619,2]
[329657719,1718545851570,-500.0,0.00015619,2]
[329657721,1718545851600,-500.0,0.00015619,2]
[329657723,1718545851615,-500.0,0.00015619,2]
[329657726,1718545851627,-500.0,0.00015619,2]
[329657730,1718545851649,-500.0,0.00015619,2]
[329657732,1718545851669,-500.0,0.00015619,2]
[329657734,1718545851683,-500.0,0.00015619,2]
[329657736,1718545851693,-500.0,0.00015619,2]
[329657737,1718545851705,-500.0,0.00015619,2]
[329657738,1718545851722,-500.0,0.00015619,2]
[329657739,1718545851733,-500.0,0.00015619,2]
[329657740,1718545851751,-500.0,0.00015619,2]
[329657741,1718545851771,-500.0,0.00015619,2]
[329657742,1718545851791,-500.0,0.00015619,2]
[329657754,1718545851943,-500.0,0.00015619,2]
[329657756,1718545851954,-737.73,0.00015619,2]
[329657758,1718545851966,-2150.7,0.00015619,2]
[329657759,1718545851982,-500.0,0.00015619,2]
[329657761,1718545851994,-504.52605923,0.00015619,2]
[329657763,1718545852018,-500.0,0.00015619,2]
[329657764,1718545852032,-2008.87,0.00015619,2]
[329657767,1718545852045,-501.70814878,0.00015619,2]
[329657768,1718545852061,-500.0,0.00015619,2]
[329657771,1718545852078,-508.93412233,0.00015619,2]
[329657772,1718545852089,-500.0,0.00015619,2]
[329657774,1718545852099,-500.0,0.00015619,2]
[329657776,1718545852111,-581.7779418,0.00015619,2]
[329657778,1718545852122,-500.0,0.00015619,2]
[329657780,1718545852134,-500.0,0.00015619,2]
[329657782,1718545852146,-500.0,0.00015619,2]
[329657784,1718545852160,-504.48040218,0.00015619,2]
[329657786,1718545852172,-500.0,0.00015619,2]
[329657788,1718545852186,-808.56,0.00015619,2]
[329657790,1718545852197,-500.0,0.00015619,2]
[329657792,1718545852211,-236.44564904,0.00015619,2]
[329657794,1718545852223,-2081.69,0.00015619,2]
[329657796,1718545852238,-2081.69,0.00015619,2]
[329657798,1718545852250,-500.0,0.00015619,2]
[329657800,1718545852262,-1386.12,0.00015619,2]
[329657802,1718545852273,-500.0,0.00015619,2]
[329657804,1718545852284,-510.24599889,0.00015619,2]
[329657806,1718545852295,-500.0,0.00015619,2]
[329657808,1718545852308,-476.74831613,0.00015619,2]
[329657810,1718545852319,-500.0,0.00015619,2]
[329657812,1718545852332,-500.0,0.00015619,2]
[329657814,1718545852343,-500.0,0.00015619,2]
[329657816,1718545852361,-155.01395126,0.00015619,2]
[329657818,1718545852372,-500.0,0.0001562,2]
[329657820,1718545852386,-500.0,0.0001562,2]
[329657822,1718545852398,-500.86700478,0.0001562,2]
[329657824,1718545852412,-500.0,0.0001562,2]
[329657826,1718545852427,-500.0,0.0001562,2]
[329657828,1718545852440,-500.0,0.0001562,2]
[329657829,1718545852452,-500.0,0.0001562,2]
[329657831,1718545852463,-364.85416012,0.0001562,2]
[329657833,1718545852476,-500.0,0.0001562,2]
[329657835,1718545852488,-585.89843214,0.0001562,2]
[329657837,1718545852500,-616.40528886,0.0001562,2]
[329657839,1718545852521,-500.0,0.0001562,2]
[329657841,1718545852532,-550.81,0.0001562,2]
[329657844,1718545852548,-500.0,0.0001562,2]
[329657846,1718545852575,-500.0,0.0001562,2]
[329657848,1718545852588,-500.0,0.0001562,2]
[329657850,1718545852600,-500.0,0.0001562,2]
[329657852,1718545852617,-500.0,0.0001562,2]
[329657855,1718545852660,-500.0,0.0001562,2]
[329657857,1718545852671,-500.0,0.0001562,2]
[329657859,1718545852690,-506.70224077,0.0001562,2]
[329657861,1718545852701,-500.0,0.0001562,2]
[329657864,1718545852719,-500.0,0.0001562,2]
[329657866,1718545852731,-500.0,0.0001562,2]
[329657868,1718545852764,-500.0,0.0001562,2]
[329657870,1718545852776,-500.0,0.0001562,2]
[329657872,1718545852786,-505.55367972,0.0001562,2]
[329657874,1718545852801,-699.1,0.0001562,2]
[329657876,1718545852813,-500.0,0.0001562,2]
[329657878,1718545852824,-500.0,0.0001562,2]
[329657880,1718545852838,-500.0,0.0001562,2]
[329657882,1718545852850,-441.77234693,0.0001562,2]
[329657884,1718545852864,-500.0,0.0001562,2]
[329657886,1718545852888,-500.0,0.0001562,2]
[329657888,1718545852900,-500.0,0.0001562,2]
[329657890,1718545852911,-500.0,0.0001562,2]
[329657891,1718545852922,-500.0,0.0001562,2]
[329657893,1718545852933,-286.27934825,0.0001562,2]
[329657896,1718545852949,-213.72065175,0.0001562,2]
[329657898,1718545852960,-500.0,0.0001562,2]
[329657899,1718545852971,-500.0,0.0001562,2]
[329657901,1718545852989,-500.0,0.0001562,2]
[329657903,1718545853000,-245.77751905,0.0001562,2]
[329657905,1718545853013,-500.0,0.0001562,2]
[329657907,1718545853025,-500.0,0.0001562,2]
[329657909,1718545853037,-500.0,0.0001562,2]
[329657911,1718545853048,-551.53,0.0001562,2]
[329657912,1718545853068,-263.9718292,0.0001562,2]
[329657915,1718545853084,-794.6081708,0.0001562,2]
[329657917,1718545853100,-500.0,0.0001562,2]
[329657918,1718545853120,-500.0,0.0001562,2]
[329657920,1718545853132,-1818.6,0.0001562,2]
[329657922,1718545853143,-500.0,0.0001562,2]
[329657925,1718545853161,-500.0,0.0001562,2]
[329657927,1718545853172,-500.0,0.0001562,2]
[329657929,1718545853190,-500.0,0.0001562,2]
[329657931,1718545853203,-399.30539995,0.0001562,2]
[329658136,1718546237459,151.00151002,0.00019552,30]
[329658137,1718546274637,5675.28,0.00014,2]
[329658203,1718547035824,-908.0013808,0.00014401,2]
[329658205,1718547035837,-276.821949,0.000145,2]
[329658206,1718547035853,-95.94189108,0.00015,2]
[329658209,1718547035894,-354.47705918,0.00015,2]
[329658296,1718547049075,-49.58104974,0.00015,2]
[329658297,1718547049089,-739.14668864,0.00015417,2]
[329658298,1718547049106,-622.12882706,0.00015468,2]
[329658299,1718547049119,-500.0,0.000155,2]
[329658300,1718547049137,-500.0,0.00015516,2]
[329658301,1718547049161,-452.27340533,0.00015516,2]
[329658302,1718547049176,-500.0,0.00015516,2]
[329658303,1718547049189,-500.0,0.00015516,2]
[329658304,1718547049207,-812.4,0.00015516,2]
[329658305,1718547049262,-500.0,0.00015516,2]
[329658306,1718547049283,-3477.23,0.00015516,2]
[329658307,1718547049335,-500.0,0.00015516,2]
[329658308,1718547049376,-2602.11,0.00015516,2]
[329658309,1718547049389,-2380.36989952,0.00015516,2]
[329658347,1718547053088,-221.74010048,0.00015516,2]
[329658350,1718547053106,-500.0,0.00015516,2]
[329658352,1718547053121,-500.0,0.00015516,2]
[329658353,1718547053134,-500.0,0.00015516,2]
[329658356,1718547053147,-500.0,0.00015516,2]
[329658358,1718547053173,-500.0,0.00015516,2]
[329658360,1718547053189,-500.0,0.00015516,2]
[329658362,1718547053207,-335.40989952,0.00015516,2]
[329658369,1718547053456,-164.59010048,0.00015516,2]
[329658372,1718547053478,-980.72,0.00015516,2]
[329658374,1718547053503,-500.0,0.00015516,2]
[329658376,1718547053519,-500.0,0.00015516,2]
[329658378,1718547053542,-500.0,0.00015516,2]
[329658380,1718547053570,-500.0,0.00015516,2]
[329658383,1718547053584,-458.47307386,0.00015517,2]
[329658428,1718547054577,-41.52692614,0.00015517,2]
[329658429,1718547054598,-500.0,0.00015517,2]
[329658430,1718547054628,-500.0,0.00015517,2]
[329658431,1718547054642,-500.0,0.00015517,2]
[329658433,1718547054658,-500.0,0.00015517,2]
[329658434,1718547054671,-510.52610432,0.00015517,2]
[329658436,1718547054695,-127.73634768,0.00015517,2]
[329658453,1718547225653,660.53196564,9.999e-05,2]
[329658454,1718547244650,282.72272526,9.999e-05,2]
[329658455,1718547271503,411.91631755,9.999e-05,2]
[329658456,1718548061515,167.560996,0.00013978,2]
[329658459,1718548230890,523.15536455,9.999e-05,2]
[329658521,1718548235738,-250.0,0.00014051,2]
[329658522,1718548235758,-400.26151516,0.0001406,2]
[329658523,1718548235771,-260.12980989,0.0001406,2]
[329658524,1718548235785,-72.49145865,0.0001406,2]
[329658525,1718548235826,-2365.3422028,0.0001408,2]
[329658526,1718548235838,-3000.0,0.00014134,2]
[329658528,1718548235882,-1056.29315305,0.00014516,2]
[329658577,1718548243216,-1298.19586907,0.00014516,2]
[329658586,1718548243852,-2455.95434988,0.00014516,2]
[329658588,1718548243865,-500.0,0.00015,2]
[329658589,1718548243879,-585.0625763,0.00015078,2]
[329658590,1718548243891,-230.54836663,0.00015414,2]
[329658660,1718548249210,-464.78176223,0.00015414,2]
[329658661,1718548249238,-257.46445177,0.00015415,2]
[329658663,1718548249269,-257.46445177,0.00015415,2]
[329658664,1718548249312,-257.46445177,0.00015416,2]
[329658665,1718548249323,-257.46445177,0.00015416,2]
[329658666,1718548249471,-257.46445177,0.00015416,2]
[329658667,1718548249499,-530.57585468,0.00015512,2]
[329658668,1718548249516,-567.11323713,0.00015512,2]
[329658669,1718548249540,-1518.91993593,0.00015513,2]
[329658670,1718548249551,-500.0,0.00015513,2]
[329658671,1718548249580,-500.0,0.00015513,2]
[329658672,1718548249648,-508.24146568,0.00015513,2]
[329658673,1718548249664,-570.85957129,0.00015514,2]
[329658675,1718548249675,-158.06038721,0.00015514,2]
[329658677,1718548249695,-722.38007944,0.00015514,2]
[329658679,1718548249712,-183.63846185,0.00015514,2]
[329658680,1718548249732,-692.0639849,0.00015514,2]
[329658682,1718548249746,-400.10210111,0.00015514,2]
[329658683,1718548249785,-337.99463448,0.00015514,2]
[329658684,1718548249840,-497.87582365,0.00015514,2]
[329658685,1718548249851,-524.71271013,0.00015514,2]
[329658686,1718548249876,-410.78973325,0.00015514,2]
[329658687,1718548249913,-510.87191922,0.00015514,2]
[329658688,1718548249924,-500.0,0.00015514,2]
[329658689,1718548249959,-500.0,0.00015514,2]
[329658690,1718548249990,-500.0,0.00015514,2]
[329658691,1718548250009,-500.0,0.00015514,2]
[329658692,1718548250044,-500.0,0.00015514,2]
[329658693,1718548250061,-306.63607897,0.00015514,2]
[329658694,1718548250075,-1961.36275003,0.00015514,2]
[329658695,1718548250115,-4077.381171,0.00015514,2]
[329658696,1718548250127,-500.0,0.00015514,2]
[329658697,1718548250137,-502.71221611,0.00015514,2]
[329658698,1718548250188,-1351.57,0.00015514,2]
[329658700,1718548250220,-454.9242391,0.00015514,2]
[329658701,1718548250235,-3497.71,0.00015514,2]
[329658702,1718548250261,-500.0,0.00015514,2]
[329658703,1718548250284,-500.0,0.00015514,2]
[329658704,1718548250298,-329.56637329,0.00015514,2]
[329658705,1718548250326,-500.0,0.00015514,2]
[329658706,1718548250348,-500.0,0.00015514,2]
[329658707,1718548250376,-500.0,0.00015514,2]
[329658708,1718548250390,-3498.15,0.00015514,2]
[329658709,1718548250422,-500.0,0.00015514,2]
[329658710,1718548250473,-500.0,0.00015514,2]
[329658711,1718548250506,-616.35,0.00015514,2]
[329658712,1718548250520,-2260.36,0.00015514,2]
[329658713,1718548250536,-500.0,0.00015514,2]
[329658714,1718548250557,-1691.11,0.00015514,2]
[329658715,1718548250576,-500.0,0.00015514,2]
[329658716,1718548250605,-500.0,0.00015514,2]
[329658717,1718548250618,-500.0,0.00015514,2]
[329658719,1718548250633,-500.0,0.00015514,2]
[329658721,1718548250646,-2453.2,0.00015514,2]
[329658722,1718548250672,-2453.2,0.00015514,2]
[329658723,1718548250686,-2453.2,0.00015514,2]
[329658724,1718548250697,-2453.2,0.00015514,2]
[329658725,1718548250714,-804.97,0.00015514,2]
[329658726,1718548250729,-500.0,0.00015514,2]
[329658727,1718548250750,-500.0,0.00015514,2]
[329658728,1718548250789,-500.0,0.00015514,2]
[329658729,1718548250837,-509.31,0.00015514,2]
[329658730,1718548250857,-509.31,0.00015514,2]
[329658731,1718548250872,-308.11622416,0.00015514,2]
[329658732,1718548250885,-500.0,0.00015514,2]
[329658733,1718548250896,-500.0,0.00015514,2]
[329658734,1718548250913,-4122.08,0.00015514,2]
[329658735,1718548250957,-1375.13,0.00015514,2]
[329658736,1718548250970,-508.38182415,0.00015514,2]
[329658737,1718548250993,-1846.99,0.00015514,2]
[329658738,1718548251004,-500.0,0.00015514,2]
[329658739,1718548251020,-956.04,0.00015514,2]
[329658740,1718548251038,-220.23496928,0.00015515,2]
[329658741,1718548251057,-500.0,0.00015515,2]
[329658742,1718548251080,-500.0,0.00015515,2]
[329658743,1718548251100,-500.0,0.00015515,2]
[329658744,1718548251113,-500.0,0.00015515,2]
[329658745,1718548251144,-500.0,0.00015515,2]
[329658746,1718548251170,-500.0,0.00015515,2]
[329658747,1718548251182,-500.0,0.00015515,2]
[329658748,1718548251196,-500.0,0.00015515,2]
[329658749,1718548251237,-500.0,0.00015515,2]
[329658750,1718548251271,-500.0,0.00015515,2]
[329658751,1718548251307,-500.0,0.00015515,2]
[329658752,1718548251329,-500.0,0.00015515,2]
[329658753,1718548251359,-550.89659952,0.00015515,2]
[329658754,1718548251429,-500.0,0.00015515,2]
[329658755,1718548251461,-500.0,0.00015515,2]
[329658756,1718548251484,-500.0,0.00015515,2]
[329658757,1718548251501,-501.90321206,0.00015515,2]
[329658758,1718548251528,-500.0,0.00015515,2]
[329658759,1718548251553,-500.0,0.00015515,2]
[329658760,1718548251590,-500.0,0.00015515,2]
[329658761,1718548251605,-500.0,0.00015515,2]
[329658762,1718548251629,-459.84823658,0.00015515,2]
[329658763,1718548251642,-214.95505878,0.00015515,2]
[329658764,1718548251657,-502.73501367,0.00015515,2]
[329658765,1718548251680,-264.40857223,0.00015515,2]
[329658766,1718548251700,-500.0,0.00015515,2]
[329658767,1718548251716,-500.0,0.00015515,2]
[329658768,1718548251772,-502.84122606,0.00015515,2]
[329658769,1718548251796,-500.0,0.00015515,2]
[329658770,1718548251811,-500.0,0.00015515,2]
[329658771,1718548251836,-500.0,0.00015515,2]
[329658772,1718548251852,-509.98399029,0.00015515,2]
[329658773,1718548251889,-500.0,0.00015515,2]
[329658774,1718548251913,-503.9346633,0.00015515,2]
[329658775,1718548251942,-172.43575819,0.00015515,2]
[329658776,1718548251954,-504.57945437,0.00015515,2]
[329658777,1718548251968,-500.0,0.00015515,2]
[329658778,1718548251988,-500.0,0.00015515,2]
[329658779,1718548252005,-500.0,0.00015515,2]
[329658780,1718548252024,-500.0,0.00015515,2]
[329658781,1718548252038,-642.48336699,0.00015515,2]
[329658782,1718548252049,-504.19429598,0.00015515,2]
[329658783,1718548252072,-500.0,0.00015515,2]
[329658784,1718548252084,-500.0,0.00015515,2]
[329658785,1718548252095,-500.0,0.00015515,2]
[329658786,1718548252119,-500.0,0.00015515,2]
[329658787,1718548252140,-503.74802448,0.00015515,2]
[329658788,1718548252168,-151.0,0.00015515,2]
[329658789,1718548252185,-413.90174144,0.00015515,2]
[329658790,1718548252195,-502.10248692,0.00015515,2]
[329658791,1718548252209,-502.42198833,0.00015515,2]
[329658792,1718548252223,-477.13342322,0.00015515,2]
[329658793,1718548252428,-22.86657678,0.00015515,2]
[329658794,1718548252484,-500.0,0.00015515,2]
[329658795,1718548252497,-500.0,0.00015515,2]
[329658796,1718548252509,-382.4370185,0.00015515,2]
[329658797,1718548252585,-117.5629815,0.00015515,2]
[329658798,1718548252608,-500.0,0.00015515,2]
[329658799,1718548252623,-500.0,0.00015515,2]
[329658800,1718548252639,-501.14844376,0.00015515,2]
[329658801,1718548252658,-158.553397,0.00015515,2]
[329658802,1718548252670,-500.0,0.00015515,2]
[329658803,1718548252686,-500.0,0.00015515,2]
[329658804,1718548252700,-500.0,0.00015515,2]
[329658805,1718548252712,-500.0,0.00015515,2]
[329658806,1718548252737,-503.8749946,0.00015515,2]
[329658807,1718548252750,-500.0,0.00015515,2]
[329658808,1718548252761,-500.0,0.00015515,2]
[329658809,1718548252774,-500.0,0.00015515,2]
[329658810,1718548252796,-500.0,0.00015515,2]
[329658811,1718548252814,-500.0,0.00015515,2]
[329658812,1718548252827,-517.55328757,0.00015515,2]
[329658813,1718548252840,-500.0,0.00015515,2]
[329658814,1718548252853,-504.40591013,0.00015515,2]
[329658815,1718548252866,-500.4844163,0.00015515,2]
[329658816,1718548252888,-500.0,0.00015515,2]
[329658817,1718548252912,-500.0,0.00015515,2]
[329658818,1718548252925,-502.40328199,0.00015515,2]
[329658819,1718548252944,-548.69,0.00015515,2]
[329658820,1718548252957,-500.89232391,0.00015515,2]